Cogmind - Beta 15 @@@ ROGUE MODE // 2025.06.10 @ 05:46:30 Player: CL-1C0 Result: Self-destructed Performance ------------- Evolutions (3) 1500 Regions Visited (6) 1200 Robots Destroyed (3) 15 Value Destroyed (40) 40 Prototype IDs (0) 0 Alien Tech Used (0) 0 Bonus (200) 200 TOTAL SCORE: 2955 Bonus ------- Pacifist 200 Cogmind --------- Core Integrity 689/700 Matter 300/300 Energy 99/100 System Corruption 0% Temperature Cool (0) Movement Core (50) Location -7/Lower Caves Parts ------- > --- POWER (1) -------- (None) > --- PROPULSION (4) --- Light Treads > --- UTILITY (6) ------ Improved Sensor Array Target Analyzer > --- WEAPON (2) ------- Mini Grenade Launcher > --- INVENTORY (5) ---- Micro Nuclear Core Propulsion Shielding System Shield Datajack Chainsword Peak State ------------ > --- POWER ------------ (None) > --- PROPULSION ------- Light Treads > --- UTILITY ---------- Improved Sensor Array Target Analyzer > --- WEAPON ----------- Mini Grenade Launcher > --- INVENTORY -------- Micro Nuclear Core Propulsion Shielding System Shield Datajack Chainsword [Rating: 10] Favorites ----------- Power None Propulsion Light Treads Treads Light Treads Utility Target Analyzer Device Improved Sensor Array Processor Target Analyzer Weapon Mini Grenade Launcher Launcher Mini Grenade Launcher Build | -11 -10 -9 -9 -8 -7 -7 ------- Run | Yrd Mat Mat Min Mat Fac Low Slots Evolved 6 | . . 2 . 2 2 . Power . | . . . . . . . Propulsion 2 | . . 1 . 1 . . Utility 4 | . . 1 . 1 2 . Weapon . | . . . . . . . Parts Attached 5 | 2 . . 1 1 1 . Power . | . . . . . . . Engine . | . . . . . . . Core . | . . . . . . . Reactor . | . . . . . . . Propulsion 2 | 2 . . . . . . Treads 2 | 2 . . . . . . Leg . | . . . . . . . Wheel . | . . . . . . . Hover . | . . . . . . . Flight . | . . . . . . . Utility 2 | . . . . 1 1 . Device 1 | . . . . . 1 . Storage . | . . . . . . . Processor 1 | . . . . 1 . . Hackware . | . . . . . . . Protection . | . . . . . . . Artifact . | . . . . . . . Weapon 1 | . . . 1 . . . Energy Gun . | . . . . . . . Energy Cannon . | . . . . . . . Ballistic Gun . | . . . . . . . Ballistic Cannon . | . . . . . . . Launcher 1 | . . . 1 . . . Special Weapon . | . . . . . . . Impact Weapon . | . . . . . . . Slashing Weapon . | . . . . . . . Piercing Weapon . | . . . . . . . Special Melee Weapon . | . . . . . . . Unidentified Prototypes . | . . . . . . . Parts Lost 1 | . . . . 1 . . Power . | . . . . . . . Propulsion 1 | . . . . 1 . . Utility . | . . . . . . . Weapon . | . . . . . . . Highest Loss Streak 1 | . . . . 1 . . To Critical Strikes . | . . . . . . . Average Backups 1 | 4 . 1 1 1 2 5 Power . | 1 . . . . . 1 Propulsion . | 3 . . . . . . Utility . | . . . . . 1 2 Weapon . | . . . . . . 1 Tool/Special . | . . . . . . . Unused Backups 2 | . . . . . . 2 Power . | . . . . . . . Propulsion . | . . . . . . . Utility 1 | . . . . . . 1 Weapon . | . . . . . . . Tool/Special 1 | . . . . . . 1 Average Slot Usage (%) 29 | . 28 22 33 33 27 30 Treads 17 | . 28 22 22 16 7 7 Device 1 | . . . . . 4 7 Processor 4 | . . . . 8 7 7 Launcher 6 | . . . 11 9 7 7 Peak Build Rating 10 | 2 2 2 4 7 10 10 Average Rating 5 | 1 2 2 4 6 7 10 On Entrance 4 | 6 2 2 2 4 6 10 Naked Turns . | . . . . . . . Heaviest Build 2 | . . . 1 1 2 2 Greatest Support 3 | 3 3 3 3 3 3 3 Greatest Overweight (x) . | . . . . . . . Average Overweight (x) . | . . . . . . . Largest Inventory Capacity 5 | 5 5 5 5 5 5 5 Average Capacity 5 | 5 5 5 5 5 5 5 Most Carried 5 | 4 1 2 1 2 5 5 Average Carried 1 | 2 . 1 1 1 2 5 Final Capacity 5 | 5 5 5 5 5 5 5 Final Carried 5 | . 1 2 1 2 5 5 Class Distribution -------------------- 100% | Mutant Dominant Class ---------------- Mutant | -10/Materials Mutant | -9/Materials Mutant | -9/Mines Mutant | -8/Materials Mutant | -7/Factory Mutant | -7/Lower Caves Resources | -11 -10 -9 -9 -8 -7 -7 ----------- Run | Yrd Mat Mat Min Mat Fac Low Matter Collected 265 | 200 . . . . . 65 Remotely . | . . . . . . . Salvage Created 9 | . . . 9 . . . Parts 5 | . . . 5 . . . Haulers Intercepted . | . . . . . . . Recyclers Shooed . | . . . . . . . Parts Field Recycled . | . . . . . . . Retrieved Matter . | . . . . . . . Parts Self-Destructed . | . . . . . . . Prevented 2 | . . . . . . 2 Kills | -11 -10 -9 -9 -8 -7 -7 ------- Run | Yrd Mat Mat Min Mat Fac Low Combat Hostiles Destroyed 3 | . . . 3 . . . AOE 3 | . . . 3 . . . Classes Destroyed 1 | . . . 1 . . . Swarmer 3 | . . . 3 . . . Best Kill Streak 3 | . . . 3 . . . Combat Bots Only 3 | . . . 3 . . . Max Kills in Single Turn 3 | . . . 3 . . . Gunslinging . | . . . . . . . Exploded 3 | . . . 3 . . . Melee . | . . . . . . . Uniques/NPCs Destroyed . | . . . . . . . Combat | -11 -10 -9 -9 -8 -7 -7 -------- Run | Yrd Mat Mat Min Mat Fac Low Hostile Shots Fired 43 | . . . 7 34 2 . Missed 17 | . . . 2 15 . . Hits 26 | . . . 5 19 2 . Projectile 26 | . . . 5 19 2 . Critical Strikes 1 | . . . . . 1 . Damage Taken 298 | . 17 . 65 185 31 . Core 83 | . . . . 72 11 . Absorbed by Shields . | . . . . . . . Core Remaining (%) 96 | 100 100 . 100 86 . . Volleys Fired 2 | . . . 2 . . . Largest 1 | . . . 1 . . . Hottest 30 | . . . 30 . . . Shots Fired 2 | . . . 2 . . . Gun . | . . . . . . . Cannon . | . . . . . . . Launcher 2 | . . . 2 . . . Special . | . . . . . . . Kinetic . | . . . . . . . Thermal . | . . . . . . . Explosive 2 | . . . 2 . . . Electromagnetic . | . . . . . . . Robot Hit Streak . | . . . . . . . Robot Miss Streak 1 | . . . 1 . . . Penetration Max . | . . . . . . . Secondary Targets . | . . . . . . . Shots Hit Robots . | . . . . . . . Core Hits 3 | . . . 3 . . . Critical Kills . | . . . . . . . Critical Parts Destroyed . | . . . . . . . Critical Strikes . | . . . . . . . Melee Attacks . | . . . . . . . Impact . | . . . . . . . Slashing . | . . . . . . . Piercing . | . . . . . . . Sneak Attacks . | . . . . . . . Combat Hostiles . | . . . . . . . Follow-up Attacks . | . . . . . . . Damage Inflicted 252 | . . . 252 . . . Guns . | . . . . . . . Cannons . | . . . . . . . Explosions 252 | . . . 252 . . . Melee . | . . . . . . . Ramming . | . . . . . . . Kinetic . | . . . . . . . Thermal 40 | . . . 40 . . . Explosive 212 | . . . 212 . . . Electromagnetic . | . . . . . . . Impact . | . . . . . . . Slashing . | . . . . . . . Piercing . | . . . . . . . Highest Corruption . | . . . . . . . Average Corruption . | . . . . . . . Corruption Purged . | . . . . . . . Corruption Blocked . | . . . . . . . Overload Shots . | . . . . . . . Overflow Damage 5 | . . . 5 . . . Projectiles . | . . . . . . . Explosions 5 | . . . 5 . . . Melee . | . . . . . . . Knockbacks . | . . . . . . . Impact . | . . . . . . . Kinetic . | . . . . . . . Secondary . | . . . . . . . Self-Inflicted Damage 22 | . . . 22 . . . Shots 2 | . . . 2 . . . Rammed . | . . . . . . . Targets Rammed . | . . . . . . . Kicked . | . . . . . . . Crushed . | . . . . . . . Highest Temperature . | . . . . . . . Average Temperature . | . . . . . . . Received Heat Transfer 27 | . . . . 27 . . Siege Activations . | . . . . . . . Martial Activations . | . . . . . . . Shielding Activations . | . . . . . . . Robots Disrupted . | . . . . . . . Combat Hostiles . | . . . . . . . Robots Corrupted . | . . . . . . . Combat Hostiles . | . . . . . . . Parts Fried . | . . . . . . . Impact Corruptions . | . . . . . . . Robots Melted . | . . . . . . . Combat Hostiles . | . . . . . . . Parts Melted . | . . . . . . . Heat Transferred 50 | . . . 50 . . . Parts Sabotaged . | . . . . . . . Parts Stolen . | . . . . . . . Parts Stripped . | . . . . . . . Power Chain Reactions . | . . . . . . . Alert | -11 -10 -9 -9 -8 -7 -7 ------- Run | Yrd Mat Mat Min Mat Fac Low Maximum Alert Level . | . . . . . . . Low Security (%) 100 | 100 100 100 100 100 100 . Level 1 . | . . . . . . . Level 2 . | . . . . . . . Level 3 . | . . . . . . . Level 4 . | . . . . . . . Level 5 . | . . . . . . . High Security . | . . . . . . . Max Security . | . . . . . . . Peak Influence 107 | . 17 . 107 41 4 . Initial 41 | . . . . 41 4 . Average 15 | . 8 . 21 25 1 . Influence Increases 159 | . 17 . 122 20 . . Destroy 0b10 Robot/C 60 | . . . 60 . . . Destroy Leader 10 | . . . 10 . . . Successful Hack 22 | . 17 . . 5 . . Disable Machine 15 | . . . 15 . . . Destroy Structure 22 | . . . 22 . . . Lose Combat Pursuer 30 | . . . 15 15 . . Influence Decreases 159 | . 17 . 15 116 11 . Entered New Map 73 | . . . . 66 7 . Time Decay 76 | . 17 . 15 40 4 . Lost Part 10 | . . . . 10 . . Squads Dispatched . | . . . . . . . Investigation . | . . . . . . . Extermination . | . . . . . . . Reinforcement . | . . . . . . . Assault . | . . . . . . . Garrison . | . . . . . . . Intercept . | . . . . . . . Searches Triggered . | . . . . . . . Construction Impeded . | . . . . . . . Haulers Reinforced . | . . . . . . . Active Scanning Responses . | . . . . . . . Cargo Convoy Interrupts . | . . . . . . . Stealth | -11 -10 -9 -9 -8 -7 -7 --------- Run | Yrd Mat Mat Min Mat Fac Low Distress Signals . | . . . . . . . Communications Jammed . | . . . . . . . Distress Signals . | . . . . . . . Times Spotted 36 | . 3 . 23 9 1 . Peak Tracking Total 24 | . 3 . 24 8 1 . Tactical Retreats 2 | . . . 1 1 . . Traps | -11 -10 -9 -9 -8 -7 -7 ------- Run | Yrd Mat Mat Min Mat Fac Low Traps Triggered 1 | . 1 . . . . . Indirectly . | . . . . . . . Trap Hack Attempts . | . . . . . . . Triggered . | . . . . . . . Disarmed . | . . . . . . . Reprogrammed . | . . . . . . . Reused . | . . . . . . . Traps Extracted . | . . . . . . . Installed . | . . . . . . . Triggered . | . . . . . . . Machines | -11 -10 -9 -9 -8 -7 -7 ---------- Run | Yrd Mat Mat Min Mat Fac Low Machines Disabled 1 | . . . 1 . . . Max in Single Turn 1 | . . . 1 . . . Machines Repaired . | . . . . . . . Machines Dismantled . | . . . . . . . Machines Sabotaged . | . . . . . . . Overloaded Fab Kills . | . . . . . . . Hacking | -11 -10 -9 -9 -8 -7 -7 --------- Run | Yrd Mat Mat Min Mat Fac Low Machines Accessed 4 | . 1 . . 2 1 . Terminals 4 | . 1 . . 2 1 . Fabricators . | . . . . . . . Repair Stations . | . . . . . . . Recycling Units . | . . . . . . . Scanalyzers . | . . . . . . . Garrison Access . | . . . . . . . Total Hacks 10 | . 3 . . 5 2 . Successful 3 | . 2 . . 1 . . Failed 7 | . 1 . . 4 2 . Catastrophic 1 | . 1 . . . . . Database Lockouts . | . . . . . . . Manual 5 | . 3 . . 2 . . Terminals 10 | . 3 . . 5 2 . Fabricators . | . . . . . . . Repair Stations . | . . . . . . . Recycling Units . | . . . . . . . Scanalyzers . | . . . . . . . Garrison Access . | . . . . . . . Terminal Hacks 3 | . 2 . . 1 . . Level Access Points 1 | . 1 . . . . . Registered Components 1 | . 1 . . . . . Zone Layout 1 | . . . . 1 . . Fabricator Hacks . | . . . . . . . Repair Station Hacks . | . . . . . . . Recycling Unit Hacks . | . . . . . . . Scanalyzer . | . . . . . . . Garrison Access Hacks . | . . . . . . . Unauthorized Hacks . | . . . . . . . Terminals . | . . . . . . . Fabricators . | . . . . . . . Repair Stations . | . . . . . . . Recycling Units . | . . . . . . . Scanalyzers . | . . . . . . . Garrison Access . | . . . . . . . Data Cores Recovered . | . . . . . . . Used . | . . . . . . . Hacking Detections 3 | . 1 . . 1 1 . Full Trace Events . | . . . . . . . Feedback Events . | . . . . . . . Feedback Blocked . | . . . . . . . Robot Schematics Acquired . | . . . . . . . Robots Built . | . . . . . . . Authchips . | . . . . . . . Time . | . . . . . . . Total Robot Build Rating . | . . . . . . . Part Schematics Acquired . | . . . . . . . Parts Built . | . . . . . . . Authchips . | . . . . . . . Time . | . . . . . . . Total Part Build Rating . | . . . . . . . Parts Repaired . | . . . . . . . Time . | . . . . . . . Parts Recycled . | . . . . . . . Recycled Matter . | . . . . . . . Retrieved Matter . | . . . . . . . Retrieved Components . | . . . . . . . Parts Scanalyzed . | . . . . . . . Part Schematics Acquired . | . . . . . . . Parts Damaged . | . . . . . . . Bothacking | -11 -10 -9 -9 -8 -7 -7 ------------ Run | Yrd Mat Mat Min Mat Fac Low Used RIF Installer . | . . . . . . . Robots Hacked . | . . . . . . . Non-combat . | . . . . . . . Combat . | . . . . . . . Robot Hacks Applied . | . . . . . . . Relay Couplers Released . | . . . . . . . Fabnet Peak Effective % . | . . . . . . . Robots Rewired . | . . . . . . . Allies Hacked . | . . . . . . . Hacks Repelled . | . . . . . . . Allies | -11 -10 -9 -9 -8 -7 -7 -------- Run | Yrd Mat Mat Min Mat Fac Low Total Allies . | . . . . . . . Largest Group . | . . . . . . . Highest-Rated Group . | . . . . . . . Highest-Rated Ally . | . . . . . . . Total Orders . | . . . . . . . Ally Attacks . | . . . . . . . Total Damage . | . . . . . . . Kills . | . . . . . . . Allies Corrupted . | . . . . . . . Allies Melted . | . . . . . . . Intel | -11 -10 -9 -9 -8 -7 -7 ------- Run | Yrd Mat Mat Min Mat Fac Low Active Infowar (turns) 54 | . . . . . 24 30 Sensors 54 | . . . . . 24 30 Robot Analysis Total . | . . . . . . . Derelict Logs Recovered . | . . . . . . . Drone Launches . | . . . . . . . Drone Recoveries . | . . . . . . . Exploration | -11 -10 -9 -9 -8 -7 -7 ------------- Run | Yrd Mat Mat Min Mat Fac Low Turns Passed 279 | 4 43 15 56 90 41 30 Spaces Moved 504 | 1 83 27 87 174 73 59 Core 504 | 1 83 27 87 174 73 59 Treads . | . . . . . . . Legs . | . . . . . . . Wheels . | . . . . . . . Hover . | . . . . . . . Flight . | . . . . . . . Fastest Speed 50 | 50 50 50 50 50 50 50 Average Speed 50 | 50 50 50 50 50 50 50 Slowest Speed 50 | 50 50 50 50 50 50 50 Overloaded Moves . | . . . . . . . Propulsion Burnouts . | . . . . . . . Robots Hopped . | . . . . . . . Potential Cave-ins . | . . . . . . . Cave-ins Triggered . | . . . . . . . Exploration Rate (%) 16 | 2 36 3 30 26 4 16 Regions Visited 6 Branch Regions 2 Pre-discovered Areas . | . . . . . . . Known Exits Taken 1 | . 1 . . . . . Unknown Exits Taken 5 | 1 . 1 1 1 1 . Scrap Searched 3 | . . . 1 . . 2 Spaces Dug . | . . . . . . . Terrain Destroyed 31 | . . . 31 . . . Melee . | . . . . . . . Projectile . | . . . . . . . AOE 31 | . . . 31 . . . Terrain Rammed . | . . . . . . . Walls Destroyed . | . . . . . . . Machines Disabled . | . . . . . . . Actions | -11 -10 -9 -9 -8 -7 -7 --------- Run | Yrd Mat Mat Min Mat Fac Low Total 521 | 5 83 27 96 175 76 59 Wait 7 | . . . 7 . . . Move 498 | . 82 26 86 173 72 59 Hop . | . . . . . . . Pick Up 6 | . 1 1 . 1 3 . Fast Attach 2 | . . . . 1 1 . Attach 3 | 2 . . 1 . . . Detach . | . . . . . . . Swap . | . . . . . . . Drop 3 | 3 . . . . . . Fire 2 | . . . 2 . . . Melee . | . . . . . . . Ram . | . . . . . . . Kick . | . . . . . . . Crush . | . . . . . . . Escape Stasis . | . . . . . . . Rewire . | . . . . . . . Trap . | . . . . . . . Miscellaneous . | . . . . . . . Route ------- -11/Scrapyard -10/Materials (discovered 3 exits: *Mat x3) -9/Materials -9/Mines -8/Materials -7/Factory -7/Lower Caves History --------- Turn | Location | Event 1 | -11/Scrapyard | Released all parts (6) 5 | -11/Scrapyard | Discovered new exit (range 0) 5 | -11/Scrapyard | Entered Materials 10 | -10/Materials | Identified exit to Materials 48 | -10/Materials | Entered another Materials area 48 | -9/Materials | Evolved 2 slots: Propulsion x1, Utility x1 48 | -9/Materials | Discovered new exit (range 7) 63 | -9/Materials | Entered Mines 64 | -9/Mines | Assembled infested the area 111 | -9/Mines | Discovered new exit (range 13) 119 | -9/Mines | Entered Materials 119 | -8/Materials | Evolved 2 slots: Propulsion x1, Utility x1 204 | -8/Materials | Discovered new exit (range 10) 209 | -8/Materials | Entered Factory 209 | -7/Factory | Evolved 2 slots: Utility x2 242 | -7/Factory | Discovered new exit (range 9) 250 | -7/Factory | Entered Lower Caves 280 | -7/Lower Caves | Self-destructed Last Messages --------------- 00245_ Acquired Chainsword. 00249_ C-30 ARC bursts open, deploying its payload. 00249_ H-55 Commando unfolds itself. 00249_ ALERT: All DSF locations entering lockdown mode. LOCATION=UNKNOWN GOAL=ESCAPE 00264_ Searching scrap... 00264_ Found Hvy. Missile Launcher. 00264_ Found EM Pulse Cannon. 00264_ Found Hpw. Tractor Beam. 00264_ Found 60 Matter. 00265_ Acquired 60 matter. 00277_ Searching scrap... 00277_ Found Hvy. Battle Rifle. 00277_ Found Ion Cannon. 00277_ Found Weapon Cycler. 00277_ Found 57 Matter. 00277_ LY-4LX(r) collects Ion Cannon. 00278_ Acquired 5 matter. 00278_ YW-3DA(r) collects Hvy. Battle Rifle. Map ----- +----------------------------------------------------+ | | | | | | | | | | | ?????????????????????????????????????????????????? | | ?????????????????????????????????????????????????? | | ?????????????????????????????????????????????????? | | ?????????????????????????????????????????????????? | | ?????????????????????????????????????????????????? | | ?????????????????????????????????????????????????? | | ?????????????????????????????????????????????????? | | ?????????????????????????????????????????????????? | | ?????????????????????????????????????????????????? | | ?????????????????????????????????????????????????? | | ?????????????????????????????????????????????????? | | ?????????????????????????????????????????????????? | | ?????????????????????????????????????????????????? | | ?????????????????????????????????????????????????? | | ?????????????????????????????###?????????????####? | | ????????????????????????????## #####???????? ## | | ????????????????????????????# ##?????? # | | ????????????????????????????# ##??## #? | | ?????????????????????????????# #?# #? | | ??????????????????##########?# ! ## #? | | ??????????????????# S@ ###%## | | ??????????????????# ####S ## # ## | | ????????????????????????# r r ### ###### #? | | ????????????????????????## #### #?????##? | | ?????????????????????????## ###### ##???????# | | ??????????????????????????# #??## ######### | | ??????????????????????????# #?## ## | | ??????????????????????????# ### | | ??????????????????????????# "" | | ??????????????????????????####### """" | | ????????????????????????????????## """ | | ?????????????????????????????????## " | | ??????????????????????????????????### ]!] " | | ????????????????????????????????????## # """" | | ?????????????????????????????????????##### " | | ?????????????????????????????????????????# | | ?????????????????????????????????????????### # | | ?????????????????????????????????????????## # | | ????????????????????????????????????????## | | ????????????????????????????????????????# | | ??????????????????????????????????????# # | | ?????????????????????????????????????# ## # | | ????????????????????????????????????# #?# # | | ???????????????????????????????????# ??## # | | ?????????????????????????????????? ????## | +----------------------------------------------------+ Best States ------------- Heat Dissipation 34 Energy Generation 5 Energy Capacity 100 Matter Stores 300 Matter Capacity 300 Sight Range 16 Robot Scan Range 15 Terrain Scan Density 10 Evasion (%) 50 Target Analysis 5 Recoil Reduction 2 Item Schematics ----------------- None Robot Schematics ------------------ None Fabricated ------------ Nothing Repaired ---------- Nothing Alien Tech Used ----------------- None Achievements -------------- None Challenges ------------ None Game ------ Seed SwordNovaWings Manual? 0 Play Time 00:04:25 Cumulative 531.5 hours Start 2025.06.10 @ 05:42:25 End 2025.06.10 @ 05:46:30 Sessions 1 Manual Loads 0 Difficulty Rogue Special Mode None Game No. 618 Rogue 618 Adventurer 0 Explorer 0 Win Type - Total 18 Types 12/0/5/1/0/0/0/0/0/0 Lore% 83 Gallery% 82 Achievement% 82 Wizard Run 0 Options --------- Layout 0 ASCII 0 Keyboard 0 Movement Numpad Keybinds 0 Fullscreen 1 Font 18/SmallcapsGlow Map View 76x50 Zoom Use 0% Tactical HUD 1 Map Filters NONE Filters NONE Steam 1 RUN: 9eb0b203-fbba-4b5b-b3c6-de96d72a8d22